bitfinex-derivatives/quotes_BTCF0:USTF0_20251215
["timestamp","ask_amount","ask_price","bid_price","bid_amount"]
[1765809464666,0.0111335,89821.0,89818.0,1.39196]
[1765809464974,0.1811335,89821.0,89818.0,1.39196]
[1765809465361,0.1711335,89821.0,89818.0,1.39196]
[1765809466362,0.1711335,89821.0,89811.0,0.000167]
[1765809466363,0.0111345,89812.0,89811.0,0.000167]
[1765809466568,0.1711345,89812.0,89811.0,0.000167]
[1765809466764,0.18,89812.0,89811.0,0.0113016]
[1765809466964,0.000167,89828.0,89825.0,0.0111329]
[1765809467168,0.180167,89828.0,89825.0,0.7264929]
[1765809467466,0.180167,89828.0,89826.0,0.0111328]
[1765809468776,0.180167,89828.0,89827.0,0.1113251]
[1765809469076,0.170167,89828.0,89827.0,0.1113251]
[1765809470570,0.170167,89828.0,89827.0,0.001]
[1765809470973,0.170167,89828.0,89827.0,0.71584]
[1765809471367,0.197557,89828.0,89827.0,0.71584]
[1765809471678,0.16,89842.0,89841.0,0.0684609]
[1765809471868,0.01688,89900.0,89865.0,0.0111279]
[1765809472067,0.18688,89900.0,89866.0,0.7148]
[1765809472381,0.0111274,89870.0,89866.0,0.7148]
[1765809472577,0.0111285,89862.0,89850.0,0.00099999]
[1765809472874,0.0111299,89850.0,89849.0,0.1786]
[1765809473071,0.0111299,89850.0,89847.0,0.00016688]
[1765809473072,0.1911299,89850.0,89847.0,0.00016688]
[1765809473272,0.02739,89848.0,89847.0,0.00016688]
[1765809473474,0.22629,89848.0,89847.0,0.00016688]
[1765809473670,0.62629,89848.0,89847.0,0.00016688]
[1765809474176,0.0111326,89828.0,89827.0,0.60772]
[1765809474474,0.1811326,89828.0,89827.0,0.60772]
[1765809474684,0.0111327,89827.0,89821.0,0.0111334]
[1765809474877,0.0111331,89824.0,89820.0,0.01213349]
[1765809475074,0.20089313,89824.0,89820.0,0.00099999]
[1765809475778,0.19,89824.0,89820.0,0.01213349]
[1765809475980,0.19,89824.0,89820.0,0.0111335]
[1765809476779,0.00016699,89831.0,89830.0,0.0111323]
[1765809476972,0.17016699,89831.0,89830.0,0.0111323]
[1765809477172,0.12516699,89831.0,89830.0,0.0111323]
[1765809477376,0.12516699,89831.0,89830.0,0.12246359]
[1765809477582,0.12,89845.0,89844.0,0.0111306]
[1765809477766,0.0111295,89854.0,89844.0,0.71412]
[1765809477970,0.05629,89861.0,89860.0,0.00099999]
[1765809478174,0.2674185,89861.0,89860.0,0.00099999]
[1765809478369,0.2,89861.0,89852.0,0.00016699]
[1765809478768,0.0111288,89859.0,89852.0,0.00016699]
[1765809478975,0.00016657,89869.0,89868.0,0.0111276]
[1765809479184,0.17016657,89869.0,89868.0,0.6014876]
[1765809479379,0.02016657,89869.0,89868.0,0.6288676]
[1765809479680,0.0111233,89904.0,89890.0,0.00099999]
[1765809479882,0.0111239,89898.0,89890.0,0.01212479]
[1765809480078,0.1811239,89898.0,89890.0,0.01212479]
[1765809480379,0.1811239,89898.0,89870.0,0.33448008]
[1765809480380,0.0111257,89883.0,89870.0,0.00099999]
[1765809480570,0.17,89883.0,89870.0,0.00099999]
[1765809480776,0.0111267,89876.0,89857.0,0.011129]
[1765809480974,0.0111292,89855.0,89851.0,0.0604]
[1765809481180,0.0111296,89852.0,89851.0,0.0104]
[1765809481376,0.0111308,89842.0,89823.0,1.3916]
[1765809481575,0.17,89842.0,89833.0,0.0111319]
[1765809481882,0.17,89842.0,89835.0,0.0111317]
[1765809482069,0.0111313,89839.0,89831.0,0.0111321]
[1765809482378,0.011132,89833.0,89829.0,0.71392689]
[1765809482575,0.0111322,89831.0,89829.0,0.00016689]
[1765809482778,0.0111344,89813.0,89805.0,1.39156]
[1765809482988,0.18,89813.0,89812.0,0.0111345]
[1765809483292,0.51604008,89860.0,89812.0,0.0111345]
[1765809483293,0.0111294,89854.0,89843.0,0.0111306]
[1765809483474,0.17,89854.0,89838.0,0.71368]
[1765809483673,0.02504566,89853.0,89837.0,0.00016698]
[1765809483875,0.0111311,89840.0,89837.0,0.00016698]
[1765809484070,0.18,89840.0,89814.0,0.0111342]
[1765809484275,0.18,89840.0,89802.0,1.39156]
[1765809484276,0.011135,89809.0,89802.0,1.39156]
[1765809484476,0.0256461,89800.0,89785.0,0.0111378]
[1765809484672,0.0111366,89796.0,89785.0,0.0111378]
[1765809484885,0.17,89796.0,89773.0,0.7142]
[1765809485078,0.0111371,89792.0,89776.0,0.00016698]
[1765809485276,0.17,89792.0,89776.0,0.00016698]
[1765809485478,0.00011386,89791.0,89790.0,0.0111372]
[1765809485671,0.20011386,89791.0,89790.0,0.0111372]
[1765809486076,4e-08,89793.0,89790.0,0.12250755]
[1765809486270,0.001,89796.0,89795.0,0.0111367]
[1765809486482,0.05996049,89857.0,89795.0,2.10608]
[1765809486675,0.05996049,89857.0,89800.0,0.33448008]
[1765809486676,0.0111324,89830.0,89800.0,0.33448008]
[1765809486879,0.2011324,89830.0,89800.0,0.33448008]
[1765809487083,0.0111328,89826.0,89810.0,0.0111347]
[1765809487383,0.0111334,89821.0,89809.0,0.01130188]
[1765809487591,0.011134,89817.0,89809.0,0.00016698]
[1765809487774,0.0111347,89811.0,89809.0,0.00016698]
[1765809487978,0.18,89811.0,89809.0,0.00016698]
[1765809488174,0.18,89811.0,89809.0,0.01130188]
[1765809488378,0.18,89811.0,89809.0,0.00016698]
[1765809488795,0.0111348,89810.0,89809.0,0.00016698]
[1765809488990,0.1811348,89810.0,89809.0,0.00016698]
[1765809489290,0.17,89810.0,89809.0,0.00016698]
[1765809489478,0.00016698,89827.0,89823.0,0.0111332]
[1765809489678,0.00016698,89827.0,89815.0,0.32976]
[1765809489679,0.20016698,89827.0,89815.0,0.32976]
[1765809489885,0.20016698,89827.0,89809.0,0.00116698]
[1765809490386,0.0111332,89823.0,89809.0,0.00116698]
[1765809490591,0.011134,89817.0,89813.0,0.0111343]
[1765809490777,0.0111344,89814.0,89809.0,0.01230188]
[1765809490982,0.0111345,89813.0,89809.0,0.00116698]
[1765809491184,0.0111362,89799.0,89792.0,0.011137]
[1765809491383,0.0111366,89796.0,89792.0,0.011137]
[1765809491585,0.18,89796.0,89792.0,0.011137]
[1765809491783,0.1911366,89796.0,89792.0,0.011137]
[1765809492093,0.1911366,89796.0,89776.0,1.402899]
[1765809492094,0.0111378,89786.0,89777.0,0.0111389]
[1765809492289,0.0111378,89786.0,89767.0,0.71424]
[1765809492290,0.0111392,89775.0,89773.0,0.00016698]
[1765809492490,0.19,89775.0,89773.0,0.00016698]
[1765809492694,0.19,89775.0,89774.0,0.0111393]
[1765809493091,0.19,89775.0,89773.0,0.00016698]
[1765809493390,0.4,89774.0,89757.0,0.0111413]
[1765809493594,0.01644,89760.0,89755.0,0.00011891]
[1765809493785,0.19,89760.0,89755.0,0.00011891]
[1765809493984,0.19,89760.0,89759.0,0.0111411]
[1765809493985,0.015,89760.0,89759.0,0.0111411]
[1765809494287,0.01644,89784.0,89776.0,0.011139]
[1765809494488,0.21644,89784.0,89763.0,0.0111406]
[1765809494692,0.01644,89760.0,89758.0,0.0111411]
[1765809495079,0.19644,89760.0,89759.0,1.5]
[1765809495691,0.19644,89760.0,89757.0,0.0111413]
[1765809496282,0.19644,89760.0,89755.0,0.00011891]
[1765809496283,0.0111411,89759.0,89756.0,0.0111415]
[1765809496495,0.18,89759.0,89756.0,0.0111415]
[1765809496696,0.19,89759.0,89756.0,0.0111415]
[1765809496894,0.00016708,89768.0,89767.0,0.0111401]
[1765809497210,0.17016708,89768.0,89757.0,0.71492]
[1765809497389,0.01644,89760.0,89757.0,0.71792]
[1765809497585,0.01644,89760.0,89757.0,0.003]
[1765809497586,0.0572,89758.0,89757.0,0.003]
[1765809497788,0.2272,89758.0,89757.0,0.003]
[1765809498787,0.2272,89758.0,89757.0,0.006]
[1765809498989,0.0683421,89751.0,89750.0,0.00016708]
[1765809499196,0.2272,89751.0,89750.0,0.00016708]
[1765809499501,0.17,89751.0,89750.0,0.00016708]
[1765809499695,0.0111371,89792.0,89750.0,0.11157838]
[1765809499997,0.00011891,89767.0,89750.0,0.11157838]
[1765809500197,0.0111417,89755.0,89751.0,0.236542]
[1765809500398,0.2,89755.0,89751.0,0.236542]
[1765809500790,0.2111417,89755.0,89751.0,0.2254]
[1765809500992,0.0683421,89751.0,89750.0,0.00016708]
[1765809501190,0.2683421,89751.0,89750.0,0.00016708]
[1765809501389,0.2,89751.0,89750.0,0.00016708]
[1765809501796,0.003,89758.0,89754.0,0.0111416]
[1765809501995,0.17,89758.0,89754.0,0.0111416]
[1765809502199,0.0572,89751.0,89750.0,0.00016708]
[1765809502388,0.2572,89751.0,89750.0,0.00016708]
[1765809503395,0.2592,89751.0,89750.0,0.00016708]
[1765809504003,0.2612,89751.0,89750.0,0.00016708]
[1765809505100,0.0572,89732.0,89731.0,8.95e-05]
[1765809505399,0.24729705,89732.0,89731.0,8.95e-05]
[1765809505600,0.19009705,89732.0,89731.0,1.61150949]
[1765809505905,0.19009705,89732.0,89731.0,8.95e-05]
[1765809506200,0.19009705,89732.0,89731.0,0.6598895]
[1765809506592,0.19009705,89732.0,89731.0,0.6618895]
[1765809508405,0.19009705,89732.0,89731.0,0.6628895]
[1765809508802,0.19009705,89732.0,89731.0,0.0030895]
[1765809508803,0.25844155,89732.0,89731.0,0.0030895]
[1765809509107,0.25844155,89732.0,89727.0,0.66904]
[1765809509108,0.068345,89728.0,89727.0,0.66904]
[1765809509307,0.20931,89728.0,89727.0,0.66904]
[1765809509508,0.18,89728.0,89727.0,0.66904]
[1765809510000,0.18,89728.0,89723.0,0.00016708]
[1765809510001,0.0697055,89724.0,89723.0,0.00016708]
[1765809510207,0.0111464,89717.0,89713.0,0.714]
[1765809510406,0.0111475,89708.0,89701.0,8.008e-05]
[1765809510602,0.2111475,89708.0,89702.0,0.63604]
[1765809510800,0.05682,89702.0,89701.0,8.008e-05]
[1765809511105,0.25682,89702.0,89701.0,8.008e-05]
[1765809511708,0.25682,89702.0,89693.0,0.00011198]
[1765809511709,0.0679892,89694.0,89693.0,0.00011198]
[1765809511904,0.2,89694.0,89649.0,0.001]
[1765809512105,0.2,89694.0,89677.0,0.0111512]
[1765809512503,0.0111504,89685.0,89679.0,0.011151]
[1765809512705,0.0111504,89685.0,89672.0,0.19652]
[1765809512706,8.624e-05,89684.0,89672.0,0.19652]
[1765809512903,0.05651,89673.0,89672.0,0.19652]
[1765809513205,0.0111524,89669.0,89667.0,1.5]
[1765809513411,0.19,89669.0,89667.0,1.5]
[1765809513596,0.0111524,89668.0,89659.0,0.38644]
[1765809513910,0.011153,89663.0,89659.0,0.38644]
[1765809514108,0.181153,89663.0,89659.0,0.38644]
[1765809514305,0.17,89663.0,89659.0,0.38644]
[1765809514602,0.17,89663.0,89659.0,0.3975935]
[1765809515305,0.0111532,89662.0,89659.0,0.38644]
[1765809515603,0.19,89662.0,89659.0,0.38644]
[1765809516194,0.002,89669.0,89659.0,0.38644]
[1765809516399,0.182,89669.0,89660.0,0.11153183]
[1765809516598,0.001,89663.0,89662.0,0.0111531]
[1765809516795,0.191,89663.0,89662.0,0.7826331]
[1765809517000,0.192,89663.0,89662.0,0.71436]
[1765809517608,0.203153,89663.0,89657.0,0.0111537]
[1765809517806,0.202153,89663.0,89658.0,0.7144]
[1765809518113,0.191,89663.0,89661.0,0.0111532]
[1765809518310,0.191,89663.0,89658.0,0.7144]
[1765809518510,0.191,89663.0,89662.0,0.0682732]
[1765809518712,0.19,89663.0,89662.0,0.0682732]
[1765809519113,0.2011531,89663.0,89658.0,0.7144]
[1765809519308,0.19,89663.0,89662.0,0.0111532]
[1765809519916,0.19,89663.0,89662.0,0.0682732]
[1765809520110,0.00016727,89669.0,89668.0,0.0682724]
[1765809520313,0.16016727,89669.0,89668.0,0.0682724]
[1765809520709,0.02016727,89669.0,89668.0,0.17980174]
[1765809521107,0.18016727,89669.0,89668.0,0.0111524]
[1765809521303,0.18016727,89669.0,89668.0,0.0406524]
[1765809521504,0.18016727,89669.0,89668.0,0.0682724]
[1765809521815,0.18116727,89669.0,89668.0,0.0682724]
[1765809522409,0.18216727,89669.0,89651.0,9.863e-05]
[1765809522609,0.0111525,89668.0,89661.0,0.0111532]
[1765809522809,0.2011525,89668.0,89662.0,0.71384]
[1765809523109,0.0111542,89654.0,89651.0,9.863e-05]
[1765809523313,0.1911542,89654.0,89651.0,9.863e-05]
[1765809523617,0.1811542,89654.0,89652.0,0.71376]
[1765809524114,0.17,89654.0,89652.0,0.71576]
[1765809524721,0.0676643,89653.0,89652.0,0.71576]
[1765809524911,0.23651,89653.0,89652.0,0.71576]
[1765809525205,0.0111526,89667.0,89661.0,0.0111533]
[1765809525405,0.19,89667.0,89652.0,0.7158]
[1765809525611,0.05651,89653.0,89652.0,0.002]
[1765809525822,0.0676652,89646.0,89645.0,1.5]
[1765809526018,0.0676652,89646.0,89621.0,0.00784131]
[1765809526019,0.0111579,89624.0,89621.0,0.00784131]
[1765809526215,0.05651,89622.0,89621.0,0.00784131]
[1765809526515,0.23651,89622.0,89621.0,2.21408131]
[1765809526819,0.18,89622.0,89621.0,2.21408131]
[1765809527019,0.18010055,89622.0,89621.0,2.21408131]
[1765809527421,0.23661055,89622.0,89621.0,2.21408131]
[1765809527613,0.25222055,89622.0,89621.0,1.50784131]
[1765809527815,0.0111605,89603.0,89596.0,0.00011944]
[1765809528015,0.05651,89597.0,89596.0,0.00011944]
[1765809528217,0.25651,89597.0,89596.0,1.50011944]
[1765809528518,0.25651,89597.0,89596.0,0.00011944]
[1765809528907,0.0111628,89585.0,89584.0,0.50248]
[1765809529107,0.24651,89585.0,89584.0,0.50248]
[1765809529314,0.26337,89585.0,89584.0,0.50248]
[1765809529713,0.24651,89585.0,89584.0,0.50248]
[1765809529908,0.19014314,89585.0,89584.0,0.53198]
[1765809530223,0.19014314,89585.0,89584.0,0.5596]
[1765809530415,0.24965314,89585.0,89584.0,0.50248]
[1765809530815,0.24965314,89585.0,89570.0,1.5]
[1765809530816,0.24965314,89585.0,89575.0,0.011164]
[1765809531010,0.24965314,89585.0,89581.0,0.0111631]
[1765809531211,0.19614314,89585.0,89584.0,0.0295]
[1765809532115,0.19414314,89585.0,89584.0,0.0295]
[1765809532622,0.19414314,89585.0,89584.0,0.05712]
[1765809534022,0.0111633,89581.0,89570.0,1.5]
[1765809534224,0.16,89581.0,89574.0,0.0111641]
[1765809534421,0.02724,89576.0,89575.0,0.71356]
[1765809534627,0.22651,89576.0,89575.0,0.71356]
[1765809535126,0.19724,89576.0,89575.0,0.71356]
[1765809535330,0.17,89576.0,89575.0,0.71356]
[1765809535622,0.22751,89576.0,89575.0,0.71356]
[1765809535823,0.22751,89576.0,89570.0,1.5]
[1765809535824,0.0111645,89571.0,89570.0,1.5]
[1765809536123,0.2476745,89571.0,89570.0,2.2134]
[1765809536326,0.2476745,89571.0,89570.0,1.5]
[1765809536526,0.2476745,89571.0,89561.0,0.71336]
[1765809536527,0.05651,89562.0,89561.0,0.71336]
[1765809536730,0.2276756,89562.0,89561.0,0.71336]
[1765809537814,0.21651,89562.0,89561.0,0.71336]
[1765809538216,0.21651,89562.0,89561.0,0.001]
[1765809538420,0.16,89562.0,89561.0,0.001]
[1765809538730,0.21651,89562.0,89561.0,0.001]
[1765809539027,0.21651,89562.0,89546.0,0.0111676]
[1765809539028,0.0676766,89554.0,89522.0,0.0111706]
[1765809539227,0.02724,89544.0,89543.0,0.0111679]
[1765809539422,0.17,89544.0,89542.0,0.06692]
[1765809539623,0.02724,89543.0,89542.0,0.06692]
[1765809539814,0.0111676,89547.0,89542.0,0.06692]
[1765809540019,0.17,89547.0,89542.0,0.06692]
[1765809540215,0.00011913,89546.0,89542.0,0.06692]
[1765809540421,0.19011913,89546.0,89545.0,0.05712]
[1765809540731,0.05651,89543.0,89542.0,0.06692]
[1765809541027,0.24651,89543.0,89542.0,0.06692]
[1765809541424,0.0676801,89526.0,89525.0,0.01351114]
[1765809541631,0.0676712,89517.0,89490.0,0.01627]
[1765809541827,0.0676712,89517.0,89484.0,0.0111753]
[1765809541828,0.2476712,89517.0,89502.0,0.71332]
[1765809542028,0.011173,89503.0,89502.0,0.71332]
[1765809542238,0.2073,89503.0,89502.0,0.71332]
[1765809542431,0.2073,89503.0,89480.0,1.5]
[1765809542432,0.0273,89496.0,89495.0,0.724494]
[1765809542617,0.18,89496.0,89495.0,0.71332]
[1765809542926,0.18,89496.0,89495.0,0.779004]
[1765809543127,0.18013423,89496.0,89495.0,0.724494]
[1765809543332,0.0565,89472.0,89446.0,0.01118]
[1765809543629,0.2565,89472.0,89452.0,0.2156]
[1765809543829,0.0565,89453.0,89452.0,0.2156]
[1765809544023,0.0565,89453.0,89403.0,0.10043762]
[1765809544024,0.17,89453.0,89404.0,0.001]
[1765809544223,0.17,89453.0,89452.0,0.0111794]
[1765809544531,0.00016767,89461.0,89460.0,0.0111784]
[1765809544725,0.01016767,89461.0,89460.0,0.0384684]
[1765809544925,0.17028302,89461.0,89460.0,0.0656884]
[1765809545320,0.17028302,89461.0,89458.0,0.03992]
[1765809545722,0.17028302,89461.0,89449.0,0.3634]
[1765809545923,0.22678302,89461.0,89460.0,0.001]
[1765809546131,0.05678302,89461.0,89460.0,0.001]
[1765809546431,0.25678302,89461.0,89460.0,0.001]
[1765809547021,0.20028302,89461.0,89460.0,0.001]
[1765809548020,0.18228302,89461.0,89460.0,0.05451]
[1765809548225,0.18228302,89461.0,89460.0,0.06889]
[1765809548530,0.18228302,89461.0,89460.0,0.05451]
[1765809548728,0.18228302,89461.0,89439.0,0.027941]
[1765809548729,0.19028302,89461.0,89449.0,1.39624]
[1765809548930,0.01247,89460.0,89430.0,1.39624]
[1765809549132,0.0111796,89450.0,89434.0,0.0111815]
[1765809549429,0.16,89450.0,89433.0,0.71504]
[1765809549631,0.2,89450.0,89433.0,0.71504]
[1765809550140,0.0111808,89441.0,89433.0,0.71508]
[1765809550435,0.0676817,89433.0,89422.0,0.715]
[1765809550633,0.2576817,89433.0,89422.0,0.715]
[1765809550942,0.19,89433.0,89429.0,0.0111821]
[1765809551141,0.19,89433.0,89422.0,0.715]
[1765809551142,0.01671,89480.0,89460.0,0.0111784]
[1765809551336,0.20011535,89461.0,89460.0,0.6620184]
[1765809551537,0.20011535,89461.0,89460.0,0.67813]
[1765809551835,0.0273,89459.0,89458.0,0.7152]
[1765809552132,0.16,89459.0,89458.0,0.74249]
[1765809552332,0.16,89459.0,89458.0,0.76971]
[1765809552632,0.16,89459.0,89458.0,0.74241]
[1765809553032,0.16,89459.0,89450.0,0.00016767]
[1765809553232,0.19,89459.0,89451.0,0.45624]
[1765809553434,0.19,89459.0,89458.0,0.02729]
[1765809553736,0.19,89459.0,89458.0,0.05451]
[1765809554125,0.19,89459.0,89455.0,0.0111789]
[1765809554322,0.19,89459.0,89451.0,0.0111794]
[1765809554526,0.19,89459.0,89452.0,0.71524]
[1765809554936,0.19,89459.0,89452.0,0.83820297]
[1765809555435,0.19,89459.0,89452.0,0.82702367]
[1765809555830,0.192,89459.0,89452.0,0.82702367]
[1765809556030,0.192,89459.0,89455.0,0.0111789]
[1765809556249,0.192,89459.0,89458.0,0.05451]
[1765809556532,0.191,89459.0,89458.0,0.76943]
[1765809556732,0.191,89459.0,89458.0,0.71492]
[1765809557126,0.19,89459.0,89458.0,0.76943]
[1765809557327,0.191,89459.0,89458.0,0.76943]
[1765809557531,0.191,89459.0,89458.0,0.88121367]
[1765809557735,0.001,89459.0,89458.0,0.76943]
[1765809557927,0.201,89459.0,89458.0,0.76943]
[1765809558129,0.202,89459.0,89458.0,0.76943]
[1765809558638,0.202,89459.0,89458.0,0.05451]
[1765809558936,0.201,89459.0,89458.0,0.76939]
[1765809559136,0.192,89459.0,89458.0,1.28117367]
[1765809559333,0.0111748,89489.0,89480.0,0.0111758]
[1765809559539,0.0111748,89489.0,89479.0,0.21982815]
[1765809559540,0.0111752,89486.0,89479.0,0.21982815]
[1765809559835,0.19,89486.0,89481.0,0.0111757]
[1765809560135,0.27,89500.0,89494.0,0.011174]
[1765809560340,0.27,89500.0,89495.0,0.44316]
[1765809560341,0.18,89500.0,89495.0,0.44316]
[1765809560541,0.01128804,89499.0,89495.0,0.25784]
[1765809560735,0.20011454,89499.0,89496.0,0.0111739]
[1765809560930,0.20011454,89499.0,89498.0,0.05451]
[1765809562036,0.20011454,89499.0,89498.0,0.06830986]
[1765809562237,0.20011454,89499.0,89498.0,0.05451]
[1765809562538,0.20011454,89499.0,89498.0,0.0684611]
[1765809563337,0.20111454,89499.0,89498.0,0.0684611]
[1765809564236,0.20011454,89499.0,89498.0,0.0149511]
[1765809564437,0.25661454,89499.0,89498.0,0.71512]
[1765809564753,0.25643455,89499.0,89498.0,0.71512]
[1765809565132,0.25643455,89499.0,89498.0,0.001]
[1765809565328,0.0273,89489.0,89488.0,0.00016767]
[1765809565527,0.20006031,89489.0,89488.0,0.16647947]
[1765809565729,0.18012576,89489.0,89488.0,0.15277257]
[1765809565934,0.18012576,89489.0,89488.0,0.16625202]
[1765809566140,0.18012576,89489.0,89488.0,0.15277257]
[1765809566341,0.18012576,89489.0,89488.0,0.16615199]
[1765809567027,0.002,89499.0,89498.0,0.0656836]
[1765809567230,0.01671,89540.0,89497.0,0.0558688]
[1765809567437,0.0111687,89537.0,89530.0,0.0111695]
[1765809567631,0.0111687,89537.0,89531.0,0.30432]
[1765809567632,0.19,89537.0,89531.0,0.30432]
[1765809567838,0.19,89537.0,89532.0,0.0111694]
[1765809568034,0.00011802,89536.0,89531.0,0.30432]
[1765809568238,0.18011802,89536.0,89531.0,0.30432]
[1765809568633,0.19128692,89536.0,89531.0,0.30432]
[1765809568833,0.0111693,89533.0,89531.0,0.30432]
[1765809569033,0.0273,89532.0,89531.0,0.30432]
[1765809569235,0.2,89532.0,89531.0,0.3154895]
[1765809569438,0.19994,89532.0,89526.0,0.21982815]
[1765809569640,0.19994,89532.0,89529.0,0.0111697]
[1765809570445,0.19994,89532.0,89525.0,0.00016757]
[1765809570446,0.0111701,89526.0,89525.0,0.00016757]
[1765809570635,0.2202801,89526.0,89525.0,0.71392757]
[1765809570833,0.18,89526.0,89525.0,0.78166777]
[1765809571344,0.18,89526.0,89525.0,0.77049757]
[1765809571646,0.23662,89526.0,89525.0,0.00016757]
[1765809571835,0.18,89526.0,89525.0,0.00016757]
[1765809572038,0.18,89526.0,89525.0,0.06738777]
[1765809572636,0.18,89526.0,89525.0,0.00016757]
[1765809572637,0.21584,89526.0,89525.0,0.00016757]
[1765809573139,0.25584,89526.0,89525.0,0.00016757]
[1765809573343,0.2,89526.0,89505.0,0.00010568]
[1765809573643,0.05584,89511.0,89510.0,0.14978918]
[1765809573841,0.05584,89511.0,89506.0,0.1494]
[1765809573842,0.0111725,89507.0,89506.0,0.1494]
[1765809574039,0.19,89507.0,89506.0,0.1494]
[1765809574746,0.19,89507.0,89505.0,0.00010568]
[1765809574947,0.0670126,89506.0,89505.0,0.00010568]
[1765809575140,0.18854,89506.0,89505.0,0.65514568]
[1765809575647,0.16,89506.0,89505.0,0.69426838]
[1765809575847,0.16,89506.0,89505.0,0.65514568]
[1765809577655,0.00016757,89515.0,89511.0,0.011172]
[1765809577950,0.16,89515.0,89514.0,0.05605]
[1765809578251,0.25,89529.0,89527.0,0.0111699]
[1765809578442,0.16,89529.0,89528.0,0.71284]
[1765809581254,0.161,89529.0,89528.0,0.74079]
[1765809581458,0.161,89529.0,89528.0,0.76889]
[1765809581658,0.02854,89521.0,89520.0,0.00016757]
[1765809581952,0.2470107,89521.0,89520.0,0.00016757]
[1765809582153,0.0670126,89506.0,89495.0,1.0]
[1765809582357,0.0670139,89496.0,89495.0,1.0]
[1765809582560,0.2836739,89496.0,89495.0,1.0]
[1765809582859,0.2670139,89496.0,89495.0,1.0]
[1765809583448,0.26714873,89496.0,89495.0,1.0]
[1765809583856,0.26714873,89496.0,89495.0,0.91723316]
[1765809584156,0.26714873,89496.0,89495.0,0.87223316]
[1765809584157,0.66714873,89496.0,89495.0,0.87223316]
[1765809584853,0.66914873,89496.0,89495.0,0.87223316]
[1765809585046,0.67314873,89496.0,89495.0,0.87223316]
[1765809585451,0.67314873,89496.0,89495.0,0.82723316]
[1765809585656,0.67114873,89496.0,89495.0,0.82723316]
[1765809585853,0.67514873,89496.0,89495.0,0.82723316]
[1765809586652,0.27514873,89496.0,89495.0,0.82723316]
[1765809587962,0.27114873,89496.0,89495.0,0.82723316]
[1765809588154,0.27514873,89496.0,89495.0,0.82723316]
[1765809588353,0.0111747,89489.0,89488.0,0.01774]
[1765809588546,0.1911747,89489.0,89488.0,0.01774]
[1765809589255,0.0111769,89472.0,89462.0,0.58384]
[1765809589562,0.1911769,89472.0,89462.0,0.58384]
[1765809590165,0.1911769,89472.0,89463.0,0.00016757]
[1765809590957,0.1911769,89472.0,89471.0,0.07379]
[1765809591156,0.1911769,89472.0,89471.0,0.01774]
[1765809592456,0.1911769,89472.0,89471.0,0.01874]
[1765809593370,0.1911769,89472.0,89471.0,0.07379]
[1765809595663,0.1911769,89472.0,89471.0,0.01774]
[1765809596951,0.1911769,89472.0,89471.0,0.01874]
[1765809599358,0.1911769,89472.0,89471.0,0.085967]
[1765809599560,0.1911769,89472.0,89471.0,0.01874]
[1765809599963,0.1911769,89472.0,89471.0,0.04669]
[1765809600271,0.00016757,89480.0,89479.0,0.02795]
[1765809600467,0.0111722,89510.0,89495.0,0.05605]
[1765809600468,0.0111721,89510.0,89495.0,0.05605]
[1765809600672,0.17013483,89496.0,89495.0,0.02795]
[1765809600861,0.17013483,89496.0,89495.0,0.12349]
[1765809601165,0.17013483,89496.0,89482.0,0.0111756]
[1765809601166,0.0111769,89472.0,89468.0,0.00011345]
[1765809601372,0.57013483,89496.0,89495.0,0.05605]
[1765809601373,0.00013483,89496.0,89495.0,0.05605]
[1765809601558,0.20013483,89496.0,89495.0,0.16769]
[1765809601760,0.0111665,89555.0,89521.0,0.05692]
[1765809601962,0.0111687,89537.0,89536.0,0.07389]
[1765809602157,0.0022337,89538.0,89537.0,0.05692]
[1765809602360,0.0022327,89578.0,89551.0,0.05692]
[1765809602574,0.0022327,89578.0,89550.0,0.01697]
[1765809602575,0.0111644,89572.0,89568.0,0.01697]
[1765809602758,0.0111646,89570.0,89568.0,0.01697]
[1765809602958,0.21092466,89570.0,89568.0,0.01697]
[1765809603161,0.0111657,89561.0,89560.0,0.14995664]
[1765809603366,0.2011657,89561.0,89560.0,0.00016746]
[1765809603662,0.2011657,89561.0,89538.0,0.0111686]
[1765809603663,0.0227487,89537.0,89534.0,0.00013625]
[1765809603859,0.0227487,89537.0,89494.0,0.10043762]
[1765809603860,0.0111726,89507.0,89484.0,0.08023781]
[1765809604059,0.19,89507.0,89497.0,0.14978918]
[1765809604268,0.0558418,89541.0,89497.0,0.14978918]
[1765809604269,0.0111686,89539.0,89523.0,0.01697]
[1765809604470,0.0111695,89531.0,89530.0,0.05692]
[1765809604679,0.19,89531.0,89530.0,0.05692]
[1765809604862,0.1901289,89531.0,89530.0,0.05692]
[1765809605169,0.011,89538.0,89537.0,0.0680887]
[1765809605363,0.01647,89565.0,89537.0,0.0680887]
[1765809605570,0.14647,89565.0,89559.0,0.0111659]
[1765809605758,0.14647,89565.0,89560.0,0.27904]
[1765809605963,0.14647,89565.0,89539.0,0.0111685]
[1765809606175,0.14647,89565.0,89520.0,0.0111708]
[1765809606176,0.01647,89544.0,89524.0,0.08023781]
[1765809606471,0.19647,89544.0,89535.0,0.0111689]
[1765809606663,0.19647,89544.0,89534.0,0.14978918]
[1765809606664,0.00016756,89543.0,89539.0,0.0111684]
[1765809606865,0.00012541,89564.0,89556.0,0.0111663]
[1765809607069,0.00012541,89564.0,89562.0,0.0111656]
[1765809607070,0.20012541,89564.0,89562.0,0.0111656]
[1765809607264,0.20012541,89564.0,89563.0,0.31568]
[1765809607768,0.20012541,89564.0,89563.0,0.42733324]
[1765809607969,0.20012541,89564.0,89563.0,0.82733324]
[1765809608866,0.20012541,89564.0,89563.0,0.92726445]
[1765809609065,0.00016756,89572.0,89571.0,0.0111645]
[1765809609276,0.0111591,89615.0,89600.0,0.0111608]
[1765809609571,0.205,89607.0,89601.0,0.71208]
[1765809610071,0.00010979,89606.0,89601.0,0.71208]
[1765809610265,0.19010979,89606.0,89602.0,0.0111606]
[1765809610467,0.19010979,89606.0,89602.0,0.12280325]
[1765809610667,0.19010979,89606.0,89596.0,0.0111614]
[1765809610868,0.02867,89604.0,89603.0,0.50404]
[1765809611066,0.19,89604.0,89603.0,0.50404]
[1765809611266,0.00010979,89606.0,89604.0,0.0111604]